bitfinex-derivatives/quotes_SOLF0:USTF0_20240907
["timestamp","ask_amount","ask_price","bid_price","bid_amount"]
[1725683942239,9.81,125.56,125.49,4.1774]
[1725683942441,0.75157302,125.55,125.49,13.9874]
[1725683942841,0.75157302,125.55,125.49,17.9727]
[1725683943037,3.9843,125.53,125.49,17.9727]
[1725683943845,3.9843,125.53,125.51,9.81]
[1725683945453,3.95512257,125.56,125.51,13.7945]
[1725683945642,0.75149624,125.55,125.51,9.81]
[1725683945837,0.75149624,125.54,125.51,9.81]
[1725683946038,3.984,125.54,125.51,9.81]
[1725683946543,4.00087972,125.56,125.5,9.81]
[1725683946544,4.73565455,125.53,125.5,9.81]
[1725683946744,3.9841,125.53,125.5,9.81]
[1725683946941,7.91530769,125.53,125.5,9.81]
[1725683948541,3.9844,125.52,125.49,4.1774]
[1725683949449,7.96981476,125.52,125.49,4.1774]
[1725683950647,3.9847,125.51,125.49,4.1774]
[1725683954751,3.9847,125.51,125.48,135.95896096]
[1725683954945,3.9847,125.51,125.48,145.76896096]
[1725683955558,7.90106018,125.52,125.49,3.9852]
[1725683955761,3.9846,125.52,125.49,3.9852]
[1725683956257,8.05842592,125.52,125.49,3.9852]
[1725683959557,4.07382592,125.52,125.48,141.78336096]
[1725683959758,2.6424,125.56,125.51,9.81]
[1725683960061,0.75155282,125.55,125.51,9.81]
[1725683960264,3.9842,125.53,125.51,9.81]
[1725683961362,3.9839,125.54,125.51,9.81]
[1725683961664,0.75154684,125.53,125.51,9.81]
[1725683962958,4.73564684,125.53,125.51,9.81]
[1725683963162,3.9841,125.53,125.51,9.81]
[1725683964260,13.84914658,125.56,125.5,9.81]
[1725683964564,10.56155481,125.55,125.49,6.7028]
[1725683964757,0.75155481,125.54,125.49,6.7028]
[1725683965464,3.9844,125.52,125.49,6.7028]
[1725683968763,3.9844,125.52,125.5,9.81]
[1725683980476,3.9842,125.53,125.5,13.795]
[1725683981171,7.99910977,125.53,125.5,13.795]
[1725683990474,4.01490977,125.53,125.5,9.81]
[1725683990773,10.7682,125.57,125.5,9.81]
[1725683990974,0.7514841,125.56,125.5,9.81]
[1725683991179,4.72773148,125.56,125.5,13.7949]
[1725683991378,0.75148419,125.55,125.5,13.7949]
[1725683992272,3.9839,125.54,125.5,13.7949]
[1725683994779,3.9839,125.54,125.51,3.9845]
[1725683994980,3.9839,125.54,125.51,13.7945]
[1725683995674,3.9836,125.55,125.51,13.7945]
[1725683996475,3.9832,125.56,125.52,9.81]
[1725683996774,8.00680066,125.56,125.52,9.81]
[1725683996978,3.9832,125.56,125.52,9.81]
[1725683997184,3.9832,125.56,125.53,3.984]
[1725683997488,8.04267584,125.56,125.53,3.984]
[1725683997780,3.9832,125.56,125.53,3.984]
[1725683998279,7.88477697,125.56,125.53,3.984]
[1725684000180,7.88477697,125.56,125.54,9.81]
[1725684002085,9.81,125.62,125.55,9.81]
[1725684002285,0.7509704,125.61,125.55,9.81]
[1725684002479,3.9829,125.57,125.55,9.81]
[1725684002788,3.98406358,125.56,125.54,9.81]
[1725684005287,3.9829,125.57,125.54,9.81]
[1725684005988,8.0586891,125.57,125.54,9.81]
[1725684007988,3.9831,125.56,125.54,9.81]
[1725684010294,4.0757891,125.57,125.49,4.1299]
[1725684010492,0.75104254,125.56,125.49,4.1299]
[1725684010690,0.75104254,125.55,125.51,9.81]
[1725684010999,3.9839,125.54,125.51,13.7947]
[1725684011993,4.04829575,125.57,125.51,9.81]
[1725684011994,3.9842,125.53,125.51,9.81]
[1725684012196,3.9842,125.53,125.5,3.9848]
[1725684012389,3.9845,125.52,125.49,4.1299]
[1725684012592,3.9845,125.52,125.49,13.9399]
[1725684013504,3.9845,125.52,125.49,17.9252]
[1725684017804,9.81,125.56,125.49,4.1299]
[1725684017997,10.56129835,125.55,125.48,9.81]
[1725684018199,0.75129835,125.54,125.48,9.81]
[1725684018395,0.75129835,125.54,125.45,3.9556]
[1725684018396,3.9849,125.51,125.49,9.81]
[1725684019106,3.9845,125.52,125.49,9.81]
[1725684019502,4.04829575,125.57,125.51,9.81]
[1725684019707,3.9842,125.53,125.5,3.985]
[1725684020005,4.0762913,125.53,125.5,9.81]
[1725684020206,9.81,125.56,125.5,9.81]
[1725684020401,0.75121053,125.55,125.5,9.81]
[1725684020603,3.96508711,125.56,125.45,153.0618746]
[1725684020804,3.984,125.54,125.51,9.81]
[1725684021307,3.97162849,125.56,125.51,9.81]
[1725684021509,0.7511954,125.55,125.51,9.81]
[1725684021703,3.9517026,125.55,125.51,9.81]
[1725684021907,3.984,125.54,125.51,9.81]
[1725684022107,3.93934855,125.53,125.51,9.81]
[1725684022509,3.93934855,125.53,125.51,13.7946]
[1725684023499,3.93934855,125.53,125.52,3.9844]
[1725684023809,3.9836,125.55,125.52,3.9844]
[1725684024002,3.9836,125.55,125.52,13.7944]
[1725684024507,3.90188787,125.57,125.54,9.81]
[1725684024707,36.36526782,125.64,125.57,9.81]
[1725684024909,3.9816,125.61,125.59,9.81]
[1725684028309,6.79614678,125.64,125.59,9.81]
[1725684028509,0.75057218,125.63,125.59,9.81]
[1725684029215,3.9815,125.62,125.59,9.81]
[1725684038014,3.981,125.63,125.6,9.81]
[1725684038215,0.75056303,125.62,125.6,9.81]
[1725684038618,4.80035729,125.62,125.6,9.81]
[1725684038811,4.04979426,125.62,125.61,9.81]
[1725684039014,107.1100715,125.65,125.61,13.7913]
[1725684039320,4.73090374,125.64,125.62,9.81]
[1725684039520,0.75030374,125.63,125.62,9.81]
[1725684040317,4.73120374,125.63,125.62,9.81]
[1725684044915,0.75030374,125.63,125.62,9.81]
[1725684045124,0.75030374,125.64,125.62,9.81]
[1725684045326,0.75030374,125.63,125.62,9.81]
[1725684045520,0.75037996,125.63,125.62,9.81]
[1725684046618,0.75037996,125.63,125.6,3.9817]
[1725684046619,0.75037996,125.63,125.6,9.81]
[1725684047119,4.73137996,125.63,125.6,9.81]
[1725684047325,3.981,125.63,125.6,9.81]
[1725684047514,3.93851648,125.64,125.6,9.81]
[1725684047717,4.73145198,125.63,125.6,9.81]
[1725684047923,4.05049542,125.62,125.6,9.81]
[1725684049225,3.981,125.63,125.6,9.81]
[1725684049930,7.94428951,125.63,125.6,9.81]
[1725684050718,3.9812,125.62,125.6,9.81]
[1725684051430,8.01967276,125.62,125.6,9.81]
[1725684052633,4.03847276,125.62,125.57,4.0166]
[1725684052823,9.81,125.64,125.58,9.81]
[1725684053130,0.75058865,125.63,125.58,9.81]
[1725684053926,3.9814,125.62,125.58,13.7924]
[1725684054125,4.04708195,125.64,125.58,13.7924]
[1725684054320,0.75053087,125.63,125.58,13.7924]
[1725684054527,4.73203087,125.62,125.59,9.81]
[1725684054820,3.9815,125.62,125.59,9.81]
[1725684055432,3.9816,125.61,125.59,9.81]
[1725684056637,3.91325461,125.65,125.6,9.81]
[1725684056830,0.75052945,125.64,125.6,9.81]
[1725684057030,0.75052945,125.63,125.6,9.81]
[1725684057531,0.75051932,125.62,125.6,9.81]
[1725684057735,3.9814,125.62,125.6,9.81]
[1725684060236,3.9815,125.61,125.59,9.81]
[1725684060538,4.01808465,125.63,125.57,4.0166]
[1725684060835,3.9818,125.61,125.59,9.81]
[1725684061033,8.02689047,125.61,125.59,9.81]
[1725684061635,3.9814,125.62,125.6,9.81]
[1725684064239,3.981,125.63,125.6,13.7918]
[1725684065039,3.981,125.63,125.6,9.81]
[1725684065240,13.77782112,125.66,125.6,9.81]
[1725684065429,0.75045065,125.65,125.6,9.81]
[1725684065628,3.9812,125.63,125.6,9.81]
[1725684067131,3.9812,125.63,125.6,13.7918]
[1725684067732,3.9812,125.63,125.57,4.0166]
[1725684067932,3.9812,125.63,125.6,9.81]
[1725684068331,0.75045976,125.62,125.6,9.81]
[1725684069141,3.9812,125.63,125.6,9.81]
[1725684069537,3.9812,125.63,125.59,3.982]
[1725684069737,3.9812,125.63,125.59,13.792]
[1725684069942,0.75045686,125.62,125.59,13.792]
[1725684071045,4.73175686,125.62,125.59,13.792]
[1725684071240,3.96782112,125.66,125.59,9.81]
[1725684071542,10.56053839,125.65,125.59,9.81]
[1725684071744,0.75053839,125.64,125.59,9.81]
[1725684072044,3.9814,125.62,125.59,9.81]
[1725684072245,3.9814,125.62,125.59,13.7921]
[1725684073039,3.981,125.63,125.6,13.7918]
[1725684073850,0.7504597,125.62,125.6,13.7918]
[1725684074034,7.87641936,125.63,125.6,13.7918]
[1725684074240,3.981,125.63,125.6,13.7918]
[1725684075047,0.75045973,125.62,125.6,13.7918]
[1725684075842,3.981,125.63,125.6,13.7918]
[1725684079056,3.981,125.63,125.6,9.81]
[1725684082062,3.981,125.63,125.6,13.7918]
[1725684083160,7.87173846,125.64,125.61,3.9814]
[1725684083360,3.9807,125.64,125.62,9.81]
[1725684083669,144.88148043,125.68,125.62,9.81]
[1725684083670,115.31235939,125.68,125.62,9.81]
[1725684083965,3.9805,125.65,125.62,9.81]
[1725684084169,0.75036268,125.64,125.62,9.81]
[1725684084370,4.03449044,125.65,125.62,9.81]
[1725684084666,0.75035623,125.64,125.62,9.81]
[1725684084959,4.0018354,125.65,125.62,9.81]
[1725684085266,0.75035672,125.64,125.62,9.81]
[1725684085465,3.9806,125.64,125.62,9.81]
[1725684087460,3.96775199,125.65,125.57,4.0166]
[1725684087660,125.12235939,125.68,125.61,9.81]
[1725684087862,0.75009863,125.67,125.61,9.81]
[1725684088061,4.69396049,125.67,125.61,9.81]
[1725684088256,0.75009863,125.66,125.61,9.81]
[1725684088462,0.7500986,125.65,125.61,9.81]
[1725684088669,4.0365584,125.64,125.61,9.81]
[1725684088966,125.12235939,125.68,125.61,9.81]
[1725684089169,0.75008993,125.67,125.61,9.81]
[1725684089468,3.9807,125.64,125.61,13.7915]
[1725684091366,3.9807,125.64,125.61,9.81]
[1725684091673,9.81,125.64,125.57,4.0166]
[1725684091877,0.75028339,125.63,125.57,13.8266]
[1725684092170,3.9817,125.61,125.57,17.8092]
[1725684092573,9.81,125.64,125.57,17.8092]
[1725684092574,9.81,125.64,125.57,7.9992]
[1725684092770,9.81,125.64,125.58,9.81]
[1725684093076,3.9817,125.61,125.58,9.81]
[1725684094279,3.9819,125.6,125.58,9.81]
[1725684094873,9.81,125.64,125.58,13.7922]
[1725684095870,3.9817,125.61,125.58,13.7922]
[1725684096974,3.9818,125.6,125.58,9.81]
[1725684102776,9.81,125.63,125.56,143.63533361]
[1725684102972,0.75042722,125.62,125.56,143.63533361]
[1725684104079,3.9824,125.59,125.56,143.63533361]
[1725684104277,7.96942006,125.59,125.56,143.63533361]
[1725684105777,7.96942006,125.59,125.57,9.81]
[1725684105984,7.96942006,125.59,125.56,3.9829]
[1725684106188,7.96942006,125.59,125.57,9.81]
[1725684109581,3.9824,125.59,125.57,9.81]
[1725684110077,8.00909127,125.59,125.57,9.81]
[1725684110590,3.9824,125.59,125.57,9.81]
[1725684110991,7.92345089,125.59,125.57,9.81]
[1725684112390,3.94105089,125.59,125.58,3.9825]
[1725684112588,3.7697,125.66,125.57,9.81]
[1725684112883,9.81,125.64,125.57,9.81]
[1725684113087,0.75047323,125.63,125.57,9.81]
[1725684113478,0.75046822,125.62,125.57,9.81]
[1725684113682,3.982,125.6,125.57,13.7926]
[1725684113985,4.08086379,125.59,125.57,9.81]
[1725684114184,3.9823,125.59,125.55,9.81]
[1725684114385,8.03328924,125.59,125.55,9.81]
[1725684115388,8.03328924,125.59,125.56,3.983]
[1725684115584,3.9825,125.58,125.55,9.81]
[1725684115990,7.93072078,125.58,125.55,9.81]
[1725684116495,3.9828,125.57,125.55,13.7933]
[1725684116795,3.9828,125.57,125.55,9.81]
[1725684117185,13.75822078,125.58,125.53,272.52875]
[1725684117392,9.81,125.58,125.53,272.52875]
[1725684117785,3.9837,125.54,125.53,272.52875]
[1725684126704,3.9837,125.55,125.53,272.52875]
[1725684127403,7.92384558,125.55,125.53,272.52875]
[1725684131816,3.9837,125.55,125.53,272.52875]
[1725684132010,2.759,125.6,125.53,272.52875]
[1725684132317,10.56089053,125.59,125.53,282.33875]
[1725684132504,3.9827,125.58,125.54,9.81]
[1725684132704,9.81,125.6,125.54,16.5051]
[1725684133013,3.9826,125.58,125.54,16.5051]
[1725684134611,3.9826,125.58,125.54,12.5216]
[1725684134917,3.9826,125.58,125.55,3.9834]
[1725684140519,3.9826,125.58,125.56,3.9831]
[1725684141133,3.9826,125.58,125.55,3.9833]
[1725684143328,3.9822,125.59,125.56,3.983]
[1725684144622,3.9825,125.58,125.56,3.983]
[1725684145231,3.9825,125.58,125.55,3.9833]
[1725684148737,3.9828,125.57,125.54,6.6952]
[1725684151841,3.9826,125.58,125.55,13.7933]
[1725684152044,3.94700438,125.6,125.57,9.81]
[1725684152237,9.81,125.64,125.57,9.81]
[1725684152543,3.9817,125.61,125.58,3.9823]
[1725684152739,3.9344228,125.6,125.58,3.9823]
[1725684157040,7.9163228,125.6,125.57,3.9826]
[1725684157435,7.9163228,125.6,125.56,9.81]
[1725684157844,7.9163228,125.6,125.54,2.7116]
[1725684157845,3.9806,125.64,125.59,9.81]
[1725684158039,1.3532,125.69,125.6,9.81]
[1725684158245,9.81,125.67,125.6,9.81]
[1725684158546,0.75000525,125.66,125.6,9.81]
[1725684158746,3.9806,125.64,125.61,3.9813]
[1725684160038,7.89013244,125.64,125.61,3.9813]
[1725684160447,3.90953244,125.64,125.61,3.9813]
[1725684160839,7.89033244,125.64,125.61,3.9813]
[1725684161241,3.90953244,125.64,125.59,1.3276]
[1725684161546,9.81,125.65,125.59,1.3276]
[1725684161740,9.81,125.65,125.59,5.3096]
[1725684161940,13.71515224,125.65,125.59,5.3096]
[1725684162242,3.9811,125.63,125.59,5.3096]
[1725684162639,3.9811,125.63,125.6,3.9817]
[1725684166450,3.9807,125.64,125.6,3.9817]
[1725684167945,3.9807,125.64,125.61,3.9814]
[1725684172051,3.9807,125.64,125.61,13.7914]
[1725684175255,3.9805,125.65,125.62,3.9812]
[1725684175453,3.91820664,125.66,125.62,3.9812]
[1725684175646,3.9804,125.65,125.62,3.9812]
[1725684181263,4.07152603,125.66,125.61,9.81]
[1725684181562,3.9802,125.66,125.62,13.791]
[1725684181752,4.00024247,125.65,125.62,13.791]
[1725684181948,7.98054247,125.65,125.62,13.791]
[1725684182148,3.9803,125.65,125.62,13.791]
[1725684182349,7.8763816,125.65,125.62,3.981]
[1725684184060,3.8960816,125.65,125.63,3.9808]
[1725684184361,3.8960816,125.65,125.61,9.81]
[1725684184658,9.81,125.68,125.61,9.81]
[1725684184861,0.74994324,125.67,125.61,9.81]
[1725684185060,4.75074324,125.67,125.61,9.81]
[1725684185362,9.81,125.66,125.6,9.81]
[1725684186148,13.85420039,125.66,125.6,9.81]
[1725684186353,3.9807,125.64,125.61,3.9814]
[1725684188559,3.9809,125.63,125.61,3.9814]
[1725684188861,3.9809,125.63,125.6,3.9817]
[1725684191961,3.9809,125.63,125.59,11.1376]
[1725684191962,9.81,125.63,125.57,1.4282]
[1725684192263,9.81,125.63,125.57,11.2382]
[1725684192560,3.9817,125.61,125.58,3.9823]
[1725684195957,3.9819,125.6,125.57,15.2208]
[1725684201470,3.9822,125.59,125.57,3.9826]
[1725684201764,3.9822,125.59,125.56,13.7929]
[1725684207977,3.9822,125.59,125.57,3.9827]
[1725684215077,3.9819,125.6,125.57,3.9827]
[1725684220690,3.9817,125.61,125.58,13.7924]
[1725684223796,3.9811,125.63,125.59,13.7919]
[1725684224096,13.85420039,125.66,125.59,13.7919]
[1725684224297,0.75016966,125.65,125.59,13.7919]
[1725684224600,4.66430046,125.65,125.59,13.7919]
[1725684224796,9.81,125.66,125.59,13.7919]
[1725684224995,0.75014977,125.65,125.59,13.7919]
[1725684225393,3.9813,125.62,125.59,13.7919]
[1725684227200,3.9813,125.62,125.59,3.9819]
[1725684227403,13.74205447,125.66,125.58,9.81]
[1725684227698,0.75013691,125.65,125.58,9.81]
[1725684228103,3.9814,125.62,125.59,3.9821]
[1725684235307,3.981,125.63,125.6,3.9818]
[1725684237808,3.9812,125.62,125.59,3.982]
[1725684240008,9.81,125.65,125.58,9.81]
[1725684240208,3.93205447,125.66,125.6,9.81]
[1725684240515,9.81,125.66,125.6,9.81]
[1725684240715,13.86280912,125.66,125.6,9.81]
[1725684240915,3.9809,125.63,125.6,13.7916]
[1725684241116,13.86280912,125.66,125.6,9.81]
[1725684241918,13.86280912,125.66,125.6,13.7916]
[1725684243420,3.9809,125.64,125.6,13.7916]
[1725684244120,3.981,125.63,125.6,13.7916]
[1725684250318,3.9806,125.64,125.62,3.9812]
[1725684250522,4.05280912,125.66,125.62,3.9812]
[1725684250718,9.81,125.67,125.62,3.9812]
[1725684250917,3.89860547,125.66,125.62,3.9812]
[1725684251222,3.9804,125.65,125.62,3.9812]
[1725684256022,3.9804,125.65,125.62,13.7912]
[1725684258224,3.9804,125.65,125.62,3.9812]
[1725684259325,3.9806,125.64,125.62,3.9812]
[1725684266832,3.9806,125.64,125.61,13.7914]
[1725684275724,3.9804,125.65,125.62,3.9811]
[1725684275929,3.9804,125.65,125.62,13.7911]
[1725684277829,3.9804,125.65,125.63,9.81]
[1725684278835,2.6993,125.71,125.63,9.81]
[1725684279032,2.6993,125.71,125.62,3.98566986]
[1725684279033,0.74967657,125.7,125.65,9.81]
[1725684279227,4.74928373,125.7,125.65,9.81]
[1725684279428,0.74967657,125.69,125.65,9.81]
[1725684279823,12.5093,125.71,125.65,9.81]
[1725684280028,3.9798,125.67,125.65,9.81]
[1725684281136,3.8934619,125.7,125.66,9.81]
[1725684282232,3.9792,125.69,125.66,13.7897]
[1725684287643,3.8934619,125.7,125.65,13.79]
[1725684287848,9.81,125.71,125.65,9.81]
[1725684288148,11.2035,125.72,125.65,9.81]
[1725684288350,3.9791,125.69,125.66,13.7897]
[1725684288557,7.97138122,125.69,125.66,13.7897]
[1725684293360,7.97138122,125.69,125.66,3.9797]
[1725684293654,7.97138122,125.69,125.66,13.7897]
[1725684294462,3.9788,125.7,125.67,13.7896]
[1725684295144,3.9786,125.71,125.68,3.9793]
[1725684295353,3.9786,125.71,125.68,13.7893]
[1725684297355,3.9788,125.7,125.67,3.9796]
[1725684297554,3.9788,125.7,125.68,9.81]
[1725684299257,5.30934446,125.72,125.68,9.81]
[1725684300259,3.9787,125.7,125.68,9.81]
[1725684302561,5.30934446,125.72,125.66,3.9798]
[1725684302753,5.30934446,125.72,125.67,9.81]
[1725684303262,3.9792,125.69,125.67,9.81]
[1725684303860,9.81,125.71,125.64,2.7736]
[1725684304051,9.81,125.71,125.64,9.81]
[1725684304254,3.9798,125.67,125.64,9.81]
[1725684304461,3.9798,125.67,125.63,3.9807]
[1725684304654,3.9798,125.67,125.65,9.81]
[1725684306767,5.30934446,125.72,125.66,9.81]
[1725684307065,0.74946288,125.71,125.66,9.81]
[1725684307566,5.30934446,125.72,125.68,9.81]
[1725684308250,3.91584446,125.72,125.68,9.81]
[1725684308452,2.6406,125.74,125.68,9.81]
[1725684308649,3.9786,125.71,125.68,9.81]
[1725684308851,7.91819088,125.71,125.68,9.81]
[1725684311161,3.93959088,125.71,125.68,9.81]
[1725684311367,12.4506,125.74,125.68,9.81]
[1725684311554,0.7494168,125.73,125.68,9.81]
[1725684311760,4.76104181,125.73,125.68,9.81]
[1725684312070,0.7494168,125.72,125.68,9.81]
[1725684312469,3.9787,125.7,125.68,9.81]
[1725684312766,12.4506,125.74,125.63,4.0774]
[1725684312966,0.74942844,125.73,125.67,9.81]
[1725684313166,3.9789,125.7,125.67,9.81]
[1725684315567,9.81,125.73,125.66,9.81]
[1725684315769,0.74949223,125.72,125.66,9.81]
[1725684316562,3.9792,125.69,125.66,9.81]
[1725684318972,9.81,125.73,125.66,9.81]
[1725684318973,3.9793,125.68,125.66,9.81]
[1725684320462,3.9796,125.67,125.65,9.81]
[1725684320768,9.81,125.69,125.53,276.49316431]
[1725684320968,3.9804,125.65,125.63,9.81]
[1725684321275,3.94348272,125.66,125.61,13.7913]
[1725684321573,3.9806,125.65,125.61,13.7913]
[1725684321973,3.93725788,125.66,125.61,13.7913]
[1725684322272,3.9804,125.65,125.61,13.7913]
[1725684322573,3.99459078,125.66,125.61,13.7913]
[1725684322773,11.1966,125.68,125.61,13.7913]
[1725684323274,3.9805,125.65,125.61,13.7913]
[1725684323867,3.9805,125.65,125.63,9.81]
[1725684325979,11.237,125.72,125.64,9.81]
[1725684326174,0.74972933,125.71,125.64,9.81]
[1725684326371,3.9799,125.67,125.64,9.81]
[1725684327280,3.98,125.66,125.64,9.81]
[1725684331079,3.9796,125.67,125.64,13.7904]
[1725684331977,3.9794,125.68,125.65,3.9801]
[1725684332177,9.81,125.71,125.64,9.81]
[1725684332381,0.74965081,125.7,125.64,9.81]
[1725684333279,3.9799,125.67,125.64,13.7905]
[1725684334483,3.98,125.66,125.64,13.7905]
[1725684334778,3.98,125.66,125.63,13.7908]
[1725684334977,3.89983223,125.67,125.63,9.81]
[1725684335180,3.9803,125.65,125.63,9.81]
[1725684335381,3.91854505,125.67,125.63,9.81]
[1725684335582,3.9802,125.66,125.63,9.81]
[1725684335981,3.9802,125.66,125.63,13.7908]
[1725684340088,3.9802,125.66,125.63,3.9808]
[1725684340291,3.9802,125.66,125.63,13.7908]
[1725684354796,3.9803,125.65,125.63,13.7908]
[1725684358406,3.9803,125.65,125.62,3.9811]
[1725684358609,3.9803,125.65,125.62,13.7911]
[1725684360706,13.8734699,125.67,125.59,3.9891]
[1725684360900,9.81,125.67,125.59,13.7991]
[1725684361208,9.81,125.65,125.59,12.4339]
[1725684361400,13.86908263,125.65,125.59,12.4339]
[1725684361608,13.86908263,125.65,125.54,1.3602]
[1725684361907,9.81,125.64,125.57,9.81]
[1725684362599,13.79185018,125.64,125.57,9.81]
[1725684362802,3.9817,125.61,125.57,13.7926]
[1725684364507,3.9819,125.6,125.57,13.7926]
[1725684366701,3.9819,125.6,125.57,9.81]
[1725684367805,3.9819,125.6,125.57,13.7927]
[1725684373814,3.9822,125.59,125.56,3.9829]
[1725684378214,3.9819,125.6,125.55,12.5451]
[1725684378420,3.9819,125.6,125.57,3.9827]
[1725684379323,1.4134,125.63,125.57,9.81]
[1725684380219,3.9816,125.61,125.58,3.9823]
[1725684380424,3.98185018,125.64,125.59,9.81]
[1725684380722,3.9807,125.64,125.61,3.9815]
[1725684391631,3.9804,125.65,125.62,3.9811]
[1725684392829,3.9798,125.67,125.62,9.81]
[1725684393133,3.9798,125.67,125.63,9.81]
[1725684394534,3.9798,125.67,125.64,3.9805]
[1725684408447,3.9798,125.67,125.63,13.7907]
[1725684408743,3.98,125.66,125.63,13.7907]
[1725684408939,3.98,125.66,125.63,3.9807]
[1725684409349,9.81,125.68,125.62,3.9811]
[1725684410043,3.9803,125.65,125.62,3.9811]
[1725684410441,3.93916837,125.66,125.63,3.9809]
[1725684410640,3.9801,125.66,125.63,3.9809]
[1725684410835,8.03313558,125.66,125.63,3.9809]
[1725684411237,3.9804,125.65,125.62,3.9811]
[1725684414642,3.9804,125.65,125.61,12.5741]
[1725684414643,7.97819266,125.66,125.63,3.9809]
[1725684414844,3.9801,125.66,125.63,13.7909]
[1725684415746,3.9798,125.67,125.63,13.7909]
[1725684416543,3.9798,125.67,125.64,3.9805]
[1725684417045,3.9798,125.67,125.65,9.81]
[1725684420146,3.9798,125.67,125.64,3.9805]
[1725684421846,3.94650274,125.67,125.63,13.7907]
[1725684422151,9.81,125.68,125.63,3.9807]
[1725684422554,3.9801,125.66,125.63,3.9807]
[1725684422751,8.00820785,125.66,125.63,3.9807]
[1725684425757,3.9804,125.65,125.62,13.7911]
[1725684436375,3.9804,125.65,125.61,2.7641]
[1725684436376,3.9809,125.63,125.6,9.81]
[1725684437275,3.9809,125.63,125.6,13.7918]
[1725684439880,3.99498766,125.66,125.6,9.81]
[1725684440076,9.81,125.67,125.6,9.81]
[1725684440682,3.981,125.63,125.6,13.7918]
[1725684441980,3.9808,125.64,125.61,3.9815]
[1725684442176,4.07160888,125.67,125.63,9.81]
[1725684442377,4.1234,125.69,125.63,9.81]
[1725684442682,3.9799,125.67,125.64,9.81]
[1725684442884,3.91589692,125.66,125.64,9.81]
[1725684444376,3.91589692,125.66,125.63,13.7907]
[1725684444680,7.89589692,125.66,125.63,13.7907]
[1725684445379,7.89589692,125.66,125.63,9.81]
[1725684445576,3.9803,125.65,125.63,9.81]
[1725684446178,3.9801,125.66,125.63,9.81]
[1725684451388,3.9801,125.66,125.63,13.7906]
[1725684451594,3.9798,125.67,125.63,13.7906]
[1725684453396,7.86482173,125.67,125.63,13.7906]
[1725684453790,4.1234,125.69,125.63,9.81]
[1725684454092,4.77789663,125.71,125.67,9.81]
[1725684454300,13.85307154,125.74,125.68,3.9791]
[1725684454597,0.74936616,125.73,125.68,13.7891]
[1725684455192,3.9784,125.71,125.68,13.7891]
[1725684455987,3.9782,125.72,125.68,13.7891]
[1725684457494,3.9784,125.71,125.67,3.9795]
[1725684457695,3.9784,125.71,125.67,13.7895]
[1725684458698,3.9787,125.7,125.67,13.7895]
[1725684463202,9.81,125.73,125.66,137.94041058]
[1725684463203,13.85307154,125.74,125.68,13.7891]
[1725684463403,0.74929399,125.73,125.68,13.7891]
[1725684463700,4.6789354,125.73,125.68,13.7891]
[1725684463891,3.92964141,125.73,125.68,13.7891]
[1725684464088,9.81,125.74,125.68,13.7891]
[1725684464400,3.9785,125.71,125.68,13.7891]
[1725684465190,3.9785,125.71,125.68,9.81]
[1725684467103,3.9785,125.71,125.67,13.7895]
[1725684468303,3.9788,125.7,125.67,13.7895]
[1725684468504,3.9788,125.7,125.67,3.9795]
[1725684468707,3.9788,125.7,125.66,151.73021058]
[1725684468906,3.9786,125.71,125.67,9.81]